bitfinex/quotes_ETHUSD_20250905
["timestamp","ask_amount","ask_price","bid_price","bid_amount"]
[1757092423305,0.001,4296.9,4296.8,7.29621334]
[1757092423514,0.001,4296.9,4296.8,8.65167198]
[1757092423832,0.001,4297.4,4297.3,6.52604256]
[1757092424033,0.001,4297.4,4297.3,10.45204256]
[1757092424218,0.001,4297.4,4297.3,11.51914256]
[1757092424418,0.001,4297.4,4297.3,18.68914256]
[1757092424727,0.001,4297.4,4297.3,23.95705053]
[1757092425227,0.001,4297.4,4297.3,23.64465053]
[1757092425409,0.001,4297.4,4297.3,19.71865053]
[1757092425606,0.001,4297.4,4297.3,16.47465053]
[1757092428394,0.001,4297.4,4297.3,16.13705053]
[1757092429427,0.001,4297.4,4297.3,16.59065053]
[1757092429740,0.001,4297.4,4297.3,16.13705053]
[1757092433528,0.001,4297.4,4297.3,16.59065053]
[1757092433729,0.001,4297.4,4297.3,24.86505053]
[1757092434741,0.001,4297.4,4297.3,23.30705053]
[1757092436808,0.001,4297.4,4297.3,23.30605053]
[1757092437806,0.001,4297.4,4297.3,16.13605053]
[1757092440917,0.001,4297.4,4297.3,16.58965053]
[1757092441627,0.001,4297.4,4297.3,16.13605053]
[1757092443839,0.9388,4298.2,4298.0,6.49566356]
[1757092444053,0.9388,4298.2,4298.0,6.25066356]
[1757092444347,1.2521,4298.1,4298.0,6.25066356]
[1757092445949,1.2521,4298.1,4298.0,4.169]
[1757092446153,1.37741,4298.1,4298.0,4.169]
[1757092448338,1.37741,4298.1,4297.6,3.924]
[1757092448574,0.9388,4298.0,4297.9,2.32671487]
[1757092448736,1.2511,4298.0,4297.9,2.32671487]
[1757092448939,1.2511,4298.0,4297.8,2.32672007]
[1757092449152,0.9388,4297.9,4297.8,2.32672007]
[1757092449434,1.2341,4297.9,4297.8,2.32672007]
[1757092451135,1.2341,4297.9,4297.6,3.924]
[1757092451337,0.2953,4297.9,4297.8,2.32677183]
[1757092451833,1.2479,4297.9,4297.8,2.32677183]
[1757092452234,1.2479,4297.9,4297.6,8.093]
[1757092452433,0.9526,4297.8,4297.6,8.093]
[1757092452669,1.2479,4297.7,4297.6,6.4958523]
[1757092453347,1.24691345,4297.7,4297.6,6.4958523]
[1757092453936,0.79031345,4297.7,4297.6,6.4958523]
[1757092454586,1.24691345,4297.7,4297.6,6.4958523]
[1757092454785,0.79031345,4297.7,4297.6,6.4958523]
[1757092455634,1.24691345,4297.7,4297.6,6.4958523]
[1757092457655,1.24691345,4297.7,4297.6,4.169]
[1757092458283,1.24691345,4297.7,4297.6,6.49588011]
[1757092458484,1.24691345,4297.7,4297.6,4.169]
[1757092459082,1.24691345,4297.7,4297.6,6.49588011]
[1757092460363,0.69031345,4297.7,4297.6,6.49588011]
[1757092460969,0.19431345,4297.7,4297.6,6.49588011]
[1757092461139,0.001,4297.9,4297.8,2.32677183]
[1757092461338,0.497,4297.9,4297.8,2.32677183]
[1757092461568,1.2489,4297.9,4297.7,6.49579321]
[1757092461765,0.9526,4297.8,4297.7,6.49582523]
[1757092461973,0.7913,4297.8,4297.7,6.49582523]
[1757092462265,1.2479,4297.8,4297.7,4.169]
[1757092463474,1.2479,4297.8,4297.7,6.49582597]
[1757092463960,0.7913,4297.8,4297.7,6.49582597]
[1757092464679,1.2479,4297.8,4297.7,4.169]
[1757092465239,1.2479,4297.8,4297.7,6.49582597]
[1757092466471,0.7913,4297.8,4297.7,6.49582597]
[1757092467378,1.2479,4297.8,4297.7,4.169]
[1757092470364,1.61715725,4297.8,4297.7,4.169]
[1757092470681,1.61715725,4297.8,4296.6,0.70339933]
[1757092470682,2.32720366,4297.1,4296.6,0.70339933]
[1757092470878,2.32720777,4297.0,4296.6,0.70339933]
[1757092471178,0.2953,4296.9,4296.6,0.004]
[1757092471383,1.2479,4296.9,4296.6,0.004]
[1757092471854,0.7913,4296.9,4296.6,0.004]
[1757092472054,3.57515918,4296.9,4296.6,0.004]
[1757092472867,1.2479,4296.9,4296.6,0.004]
[1757092473653,1.2479,4296.9,4296.6,2.33141935]
[1757092473854,3.57515918,4296.9,4296.7,0.004]
[1757092474082,1.2479,4296.9,4296.7,0.004]
[1757092474586,4.7143,4296.9,4296.7,0.004]
[1757092474794,4.419,4296.9,4296.7,0.004]
[1757092474963,4.7143,4296.9,4296.7,0.004]
[1757092475171,7.49815918,4296.9,4296.7,0.004]
[1757092475969,5.1709,4296.9,4296.7,0.004]
[1757092476394,7.49815918,4296.9,4296.7,0.004]
[1757092476910,5.1709,4296.9,4296.7,0.004]
[1757092477211,7.49815918,4296.9,4296.7,0.004]
[1757092480693,5.1709,4296.9,4296.7,0.004]
[1757092480990,7.49815918,4296.9,4296.7,0.004]
[1757092485388,14.07772132,4296.9,4296.7,0.004]
[1757092485716,7.04155918,4296.9,4296.7,0.004]
[1757092487218,0.496,4296.9,4296.7,0.004]
[1757092487429,0.4899,4297.8,4297.2,2.32705946]
[1757092487764,0.116,4297.6,4297.2,2.32706917]
[1757092487887,0.116,4297.6,4297.3,2.32701503]
[1757092487888,3.922,4297.5,4297.3,2.32701503]
[1757092488086,3.922,4297.5,4297.4,2.61688841]
[1757092488329,3.922,4297.5,4297.4,6.78588841]
[1757092488686,3.922,4297.5,4297.4,8.19801665]
[1757092489305,3.922,4297.5,4297.4,7.74271665]
[1757092489838,3.922,4297.5,4297.4,8.19801665]
[1757092490040,3.922,4297.5,4297.4,7.74271665]
[1757092490840,3.923,4297.8,4297.6,2.32686141]
[1757092491237,3.923,4297.8,4297.5,2.32690677]
[1757092491921,0.3141,4297.6,4297.4,4.169]
[1757092492238,0.3141,4297.6,4297.4,6.49598125]
[1757092492410,1.273,4297.6,4297.4,6.49598125]
[1757092492608,1.273,4297.6,4297.4,4.169]
[1757092492835,1.273,4297.6,4297.4,6.49597278]
[1757092493224,0.9589,4297.5,4297.4,4.169]
[1757092493536,1.273,4297.5,4297.4,4.169]
[1757092493749,5.195,4297.5,4297.4,4.169]
[1757092494341,3.922,4297.5,4297.4,4.169]
[1757092494941,4.725,4297.5,4297.4,4.169]
[1757092497863,5.195,4297.5,4297.4,4.169]
[1757092499469,4.725,4297.5,4297.4,6.49598841]
[1757092499764,3.922,4297.5,4297.4,4.169]
[1757092500278,3.922,4297.5,4297.4,6.49598841]
[1757092500748,3.922,4297.5,4297.4,4.169]
[1757092500950,4.725,4297.5,4297.4,4.169]
[1757092501837,3.922,4297.5,4297.4,4.169]
[1757092502052,3.922,4297.5,4297.4,6.78588841]
[1757092502558,3.922,4297.5,4297.4,4.4589]
[1757092502768,3.922,4297.5,4297.4,4.169]
[1757092504767,4.2361,4297.5,4297.4,4.169]
[1757092504967,4.725,4297.5,4297.4,4.169]
[1757092505281,2.32709671,4297.2,4297.1,4.169]
[1757092505472,4.723,4297.2,4297.1,4.169]
[1757092505949,2.32720502,4297.0,4296.8,0.029]
[1757092506146,0.116,4297.1,4296.8,0.029]
[1757092506147,13.9944381,4296.9,4296.8,0.029]
[1757092506351,12.94017892,4296.9,4296.8,0.029]
[1757092507045,15.2674381,4296.9,4296.8,0.029]
[1757092507245,12.94017892,4296.9,4296.8,0.029]
[1757092507445,15.2674381,4296.9,4296.8,0.029]
[1757092508075,17.7744381,4296.9,4296.8,0.029]
[1757092508873,14.65517892,4296.9,4296.8,0.029]
[1757092509060,14.18517892,4296.9,4296.8,0.029]
[1757092509262,1.715,4296.9,4296.8,0.3419]
[1757092509442,5.751,4296.9,4296.8,0.3419]
[1757092509642,0.116,4296.9,4296.8,2.66921334]
[1757092509843,3.92,4297.0,4296.9,2.32725918]
[1757092510043,3.92,4297.2,4297.0,2.32719706]
[1757092510239,3.92,4297.2,4296.8,0.69254325]
[1757092510541,3.92,4297.2,4296.8,0.029]
[1757092510737,4.036,4297.2,4296.8,2.35626589]
[1757092510948,4.036,4297.2,4297.1,0.3129]
[1757092511676,4.036,4297.2,4296.9,2.32723667]
[1757092511888,4.036,4297.2,4297.1,0.3129]
[1757092512087,3.92,4297.2,4297.1,2.64005086]
[1757092512878,4.2162,4297.2,4296.8,0.145]
[1757092513243,4.2162,4297.2,4297.0,2.32720324]
[1757092513438,3.92,4297.2,4297.1,0.3129]
[1757092513643,3.92,4297.2,4297.1,3.11085086]
[1757092514646,3.92,4297.2,4297.1,3.66915731]
[1757092515179,3.92,4297.2,4297.1,7.36735731]
[1757092515379,3.92,4297.2,4297.1,7.83815731]
[1757092516368,0.116,4297.5,4297.4,2.32698841]
[1757092516568,4.036,4297.5,4297.4,2.32698841]
[1757092516878,3.921,4297.7,4297.6,2.32688011]
[1757092517078,0.001,4297.7,4297.6,6.80878011]
[1757092517842,0.001,4297.7,4297.6,7.27958011]
[1757092519107,0.001,4297.7,4297.6,7.39558011]
[1757092519460,0.001,4297.7,4297.6,7.70798011]
[1757092519697,0.001,4297.7,4297.6,8.89272214]
[1757092521395,0.001,4297.7,4297.6,8.42192214]
[1757092523299,0.001,4297.7,4297.6,7.99302214]
[1757092523472,0.001,4297.7,4297.6,6.49588011]
[1757092523996,0.2972,4297.7,4297.6,6.49588011]
[1757092524165,0.7614,4297.7,4297.6,6.49588011]
[1757092524666,0.001,4297.7,4297.6,6.49588011]
[1757092525500,0.001,4297.7,4297.6,6.80878011]
[1757092526502,0.001,4297.9,4297.6,6.80878011]
[1757092526503,0.001,4297.9,4297.8,2.32677183]
[1757092526670,0.001,4297.9,4297.8,6.24477183]
[1757092526871,0.001,4297.9,4297.8,10.34087183]
[1757092528211,0.001,4297.9,4297.8,5.32677183]
[1757092528707,1.2123,4297.9,4297.6,0.116]
[1757092528896,0.9151,4297.8,4297.7,2.32679624]
[1757092529092,1.2113,4297.8,4297.4,4.034]
[1757092529293,0.001,4297.9,4297.8,2.32677183]
[1757092529592,0.9151,4297.8,4297.6,2.32685398]
[1757092529899,0.9151,4297.8,4297.3,6.24499786]
[1757092529900,0.9151,4297.7,4297.3,6.24499786]
[1757092530105,0.9151,4297.6,4297.5,0.09324151]
[1757092530306,0.9151,4297.6,4297.4,2.32698698]
[1757092530498,0.7604,4297.5,4297.4,2.32698698]
[1757092530798,0.116,4297.7,4297.6,2.32688011]
[1757092531303,0.4122,4297.7,4297.6,2.32688011]
[1757092531506,0.001,4297.9,4297.8,2.32677183]
[1757092531679,0.001,4297.9,4297.8,2.63967183]
[1757092532871,0.001,4297.9,4297.8,6.42287183]
[1757092535316,1e-08,4298.2,4298.1,2.32660943]
[1757092535480,1e-08,4298.2,4298.1,9.24360943]
[1757092535677,1e-08,4298.2,4298.1,11.95655599]
[1757092536010,1e-08,4298.2,4298.1,12.26895599]
[1757092536378,1e-08,4298.2,4298.1,11.95655599]
[1757092536579,1e-08,4298.2,4298.1,7.56875599]
[1757092536877,1e-08,4298.2,4298.1,11.48575599]
[1757092537105,1e-08,4298.2,4298.1,7.56875599]
[1757092537313,1e-08,4298.2,4298.1,11.48575599]
[1757092537709,1e-08,4298.2,4298.1,11.96165599]
[1757092538303,1e-08,4298.2,4298.1,8.04465599]
[1757092538500,1e-08,4298.2,4298.1,11.96165599]
[1757092538704,1e-08,4298.2,4298.1,12.43245599]
[1757092538901,1e-08,4298.2,4298.1,11.96165599]
[1757092539620,1e-08,4298.2,4298.1,12.39715599]
[1757092539805,1e-08,4298.2,4298.1,12.70955599]
[1757092545193,1e-08,4298.2,4298.1,20.45673491]
[1757092545394,1e-08,4298.2,4298.1,12.70955599]
[1757092545598,1e-08,4298.2,4298.1,19.28244229]
[1757092545797,1e-08,4298.2,4298.1,20.07444229]
[1757092546728,1e-08,4298.2,4298.1,24.24144229]
[1757092547498,1e-08,4298.2,4298.1,24.41709079]
[1757092547725,1e-08,4298.2,4298.1,20.18769079]
[1757092547930,1e-08,4298.2,4298.1,24.10269079]
[1757092548829,1e-08,4298.2,4298.1,23.92704229]
[1757092549601,1e-08,4298.2,4298.1,24.23944229]
[1757092549804,1e-08,4298.2,4298.1,16.91865599]
[1757092550015,1e-08,4298.2,4298.1,19.57654229]
[1757092550304,1e-08,4298.2,4298.1,16.91865599]
[1757092551423,1e-08,4298.2,4298.1,23.49154229]
[1757092551734,1e-08,4298.2,4298.1,13.00365599]
[1757092552034,1e-08,4298.2,4298.1,24.08865599]
[1757092552904,1e-08,4298.2,4298.1,24.09265599]
[1757092553104,1e-08,4298.2,4298.1,23.30065599]
[1757092554030,0.31500001,4298.2,4298.1,22.98675599]
[1757092554637,1e-08,4298.2,4298.1,22.98675599]
[1757092556030,1e-08,4298.2,4298.1,23.29985599]
[1757092556432,1e-08,4298.2,4298.1,16.12985599]
[1757092556636,1e-08,4298.2,4298.1,12.21585599]
[1757092556947,1e-08,4298.2,4298.1,16.12985599]
[1757092557338,1e-08,4298.2,4298.1,15.81675599]
[1757092557512,0.78550001,4298.2,4298.1,11.90275599]
[1757092557711,0.78550001,4298.2,4298.1,15.81675599]
[1757092559539,1e-08,4298.2,4298.1,15.81675599]
[1757092559845,1e-08,4298.2,4298.1,16.34704802]
[1757092561741,1e-08,4298.2,4298.1,16.03394802]
[1757092561947,1.22370001,4298.2,4298.1,16.03394802]
[1757092562441,2.32576109,4299.7,4299.0,2.32612235]
[1757092562743,2.32601414,4299.2,4299.1,0.21719203]
[1757092562923,13.4607726,4299.2,4298.1,2.33059318]
[1757092563120,6.5728863,4298.3,4298.1,0.004]
[1757092563339,0.65728863,4298.3,4298.1,0.004]
[1757092563543,6.8878863,4298.2,4298.1,2.33060943]
[1757092563740,0.315,4298.2,4298.1,2.33060943]
[1757092564246,9.2144416,4298.2,4298.1,0.004]
[1757092564748,9.8633416,4298.2,4298.1,0.004]
[1757092565712,7.5367863,4298.2,4298.1,0.004]
[1757092566312,9.8633416,4298.2,4298.1,0.004]
[1757092567162,7.5367863,4298.2,4298.1,0.004]
[1757092567315,9.8633416,4298.2,4298.1,0.004]
[1757092568048,7.5367863,4298.2,4298.1,0.004]
[1757092568213,9.8633416,4298.2,4298.1,0.004]
[1757092570362,13.7773416,4298.2,4298.1,0.004]
[1757092572040,23.3502279,4298.2,4298.1,0.004]
[1757092572245,15.47249029,4297.9,4297.8,0.025]
[1757092572652,16.42279029,4297.9,4297.8,0.025]
[1757092575232,19.42279029,4297.9,4297.8,0.025]
[1757092575438,2.32688011,4297.6,4297.2,0.004]
[1757092575639,8.89992886,4297.3,4297.2,0.004]
[1757092575932,9.20482886,4297.3,4297.2,0.004]
[1757092576136,9.85022886,4297.3,4297.2,0.004]
[1757092580563,3.914,4297.3,4297.2,0.004]
[1757092580876,3.914,4297.3,4297.2,0.3114]
[1757092581069,3.914,4297.3,4297.2,0.7416]
[1757092582466,3.914,4297.3,4297.2,3.06869671]
[1757092582641,3.914,4297.3,4297.2,0.7416]
[1757092582844,3.914,4297.3,4297.2,3.06869671]
[1757092583044,6.5728863,4298.1,4297.2,4.43376966]
[1757092583366,3.914,4298.0,4297.9,2.32670386]
[1757092583561,0.69938466,4299.1,4298.5,2.32639292]
[1757092583761,5.628,4298.6,4298.5,0.7376]
[1757092583967,5.628,4298.6,4298.5,3.06399292]
[1757092583968,3.914,4298.6,4298.5,3.06399292]
[1757092584684,0.026,4298.8,4298.7,2.32628469]
[1757092584974,0.026,4298.8,4298.7,3.53248469]
[1757092586346,0.026,4298.8,4298.7,3.06388469]
[1757092586544,6.6289863,4298.8,4298.5,0.116]
[1757092586772,6.7449863,4298.8,4298.5,2.75655386]
[1757092586970,6.7148863,4298.8,4298.6,2.32633865]
[1757092587347,6.7148863,4298.8,4298.7,2.32628469]
[1757092587646,6.7148863,4298.8,4298.7,2.63368469]
[1757092587855,6.7148863,4298.8,4298.7,3.06388469]
[1757092588279,0.026,4298.8,4298.7,4.07151143]
[1757092588478,0.026,4298.8,4298.7,7.18751143]
[1757092589179,0.026,4298.8,4298.7,13.76039773]
[1757092589483,0.026,4298.8,4298.7,7.18751143]
[1757092591160,0.026,4298.8,4298.7,6.71891143]
[1757092592059,0.026,4298.8,4298.7,9.63521142]
[1757092592388,0.026,4298.8,4298.7,6.63521142]
[1757092593058,0.026,4298.8,4298.7,11.01681142]
[1757092594499,0.026,4298.8,4298.7,14.01681142]
[1757092594849,0.026,4298.8,4298.7,11.10051143]
[1757092595757,0.026,4298.8,4298.7,18.46539773]
[1757092596950,0.026,4298.8,4298.7,18.55860209]
[1757092597147,1e-08,4298.8,4298.7,18.55860209]
[1757092597782,1e-08,4298.8,4298.7,11.19371579]
[1757092598079,1e-08,4298.8,4298.7,11.10051143]
[1757092598487,1e-08,4298.8,4298.7,10.63191143]
[1757092599472,1e-08,4298.8,4298.7,11.12651143]
[1757092599673,1e-08,4298.8,4298.7,11.91851143]
[1757092602673,1e-08,4298.8,4298.7,18.49139773]
[1757092603314,1e-08,4298.8,4298.7,11.91851143]
[1757092603570,1e-08,4298.8,4298.7,11.42391143]
[1757092604015,1e-08,4298.8,4298.7,11.91851143]
[1757092604820,1e-08,4298.8,4298.7,18.49139773]
[1757092605315,1e-08,4298.8,4298.7,17.99679773]
[1757092605474,1e-08,4298.8,4298.7,11.42391143]
[1757092609411,1e-08,4298.8,4298.7,11.91851143]
[1757092609790,1e-08,4298.8,4298.7,12.38171143]
[1757092610832,1e-08,4298.8,4298.7,12.26571143]
[1757092611119,1e-08,4298.8,4298.7,12.38171143]
[1757092612196,0.00100001,4298.8,4298.7,12.38171143]
[1757092614654,0.00100001,4298.8,4298.7,11.88711143]
[1757092615458,0.00100001,4298.8,4298.7,12.38171143]
[1757092620358,0.00100001,4298.8,4298.7,11.88711143]
[1757092620665,0.00100001,4298.8,4298.7,12.38171143]
[1757092622566,0.00100001,4298.8,4298.7,11.45691143]
[1757092622773,0.00100001,4298.8,4298.7,11.91731143]
[1757092623251,0.00100001,4298.8,4298.7,11.45691143]
[1757092623452,0.00100001,4298.8,4298.7,11.91731143]
[1757092623878,0.00100001,4298.8,4298.7,11.45691143]
[1757092624458,0.00100001,4298.8,4298.7,11.91731143]
[1757092624968,0.00100001,4298.8,4298.7,11.45691143]
[1757092627761,0.00100001,4298.8,4298.7,11.91731143]
[1757092628267,0.00100001,4298.8,4298.7,12.41191143]
[1757092628632,0.00100001,4298.8,4298.7,11.91731143]
[1757092629744,0.00100001,4298.8,4298.7,11.14951143]
[1757092629939,0.00100001,4298.8,4298.7,11.14551143]
[1757092630135,1e-08,4298.8,4298.7,4.23651143]
[1757092630380,1e-08,4298.8,4298.7,8.02951143]
[1757092630536,1e-08,4298.8,4298.7,11.02951143]
[1757092630736,0.001,4299.3,4299.2,3.11801414]
[1757092630959,0.001,4299.3,4299.2,10.02701414]
[1757092631157,0.3028,4299.3,4299.2,10.02701414]
[1757092631337,0.4099,4299.3,4299.2,10.02701414]
[1757092631969,0.4099,4299.3,4299.2,5.32601414]
[1757092632170,0.4099,4299.3,4299.2,9.23501414]
[1757092632740,0.9066,4299.3,4299.2,9.23501414]
[1757092633177,0.7995,4299.3,4299.2,9.23501414]
[1757092633376,0.3028,4299.3,4299.2,9.23501414]
[1757092633874,0.9066,4299.3,4299.2,9.23501414]
[1757092634187,0.9066,4299.3,4299.2,2.32601414]
[1757092634343,1.77075769,4299.3,4299.2,2.32601414]
[1757092634945,0.9066,4299.3,4299.2,2.32601414]
[1757092635340,0.9066,4299.3,4299.2,6.23501414]
[1757092635576,0.3028,4299.3,4299.2,6.23501414]
[1757092636188,0.3028,4299.3,4299.2,9.23501414]
[1757092636372,0.001,4299.3,4299.2,10.33241414]
[1757092636680,0.3009,4299.3,4299.2,10.50086317]
[1757092637248,0.001,4299.3,4299.2,11.59826317]
[1757092637878,0.001,4299.3,4299.2,11.29286317]
[1757092638474,0.3009,4299.3,4299.2,11.29286317]
[1757092639474,0.001,4299.3,4299.2,11.59826317]
[1757092639682,0.001,4299.3,4299.2,11.29286317]
[1757092640249,0.001,4299.3,4299.2,11.40886317]
[1757092640965,0.001,4299.3,4299.2,11.71426317]
[1757092641380,0.001,4299.3,4299.2,12.67476317]
[1757092643372,0.001,4299.3,4299.2,14.38776317]
[1757092643983,0.001,4299.3,4299.2,14.4809456]
[1757092644481,8.0,4300.0,4299.9,2.32563547]
[1757092644786,8.0,4300.0,4299.9,6.77259902]
[1757092644970,8.0,4300.0,4299.9,6.88859902]
[1757092645369,8.0,4300.0,4299.9,6.58319902]
[1757092645574,8.5008,4300.0,4299.9,6.58319902]
[1757092645777,8.5008,4300.0,4299.9,6.35063547]
[1757092646585,8.9027,4300.0,4299.9,2.44163547]
[1757092646756,8.9027,4300.0,4299.9,6.35063547]
[1757092647562,8.9027,4300.0,4299.9,2.44163547]
[1757092649274,8.9037,4300.0,4299.9,2.44163547]
[1757092650776,8.5018,4300.0,4299.9,2.44163547]
[1757092651176,8.0051,4300.0,4299.9,6.35063547]
[1757092652303,8.009,4300.0,4299.9,6.35063547]
[1757092653401,8.9036,4300.0,4299.9,6.35063547]
[1757092653577,8.5057,4300.0,4299.9,6.35063547]
[1757092654268,8.9036,4300.0,4299.9,6.35063547]
[1757092654474,8.9036,4300.0,4299.9,2.44163547]
[1757092654475,16.63857692,4300.0,4299.9,2.44163547]
[1757092655576,16.63857692,4300.0,4299.9,0.116]
[1757092655777,16.75457692,4300.0,4299.3,0.116]
[1757092656076,16.75457692,4300.0,4298.6,0.004]
[1757092656077,2.32590594,4299.4,4299.1,0.116]
[1757092656318,2.32590594,4299.4,4298.6,0.004]
[1757092656319,2.32617646,4298.9,4298.6,0.004]
[1757092656471,17.27195338,4298.9,4298.6,0.004]
[1757092656673,17.87575338,4298.9,4298.6,0.004]
[1757092657694,0.7985,4298.9,4298.8,2.35523057]
[1757092657895,4.7075,4298.9,4298.8,2.35523057]
[1757092658489,4.7075,4298.9,4298.8,0.029]
[1757092658689,4.8146,4298.9,4298.8,0.029]
[1757092659388,4.8146,4298.9,4298.8,2.35523057]
[1757092659821,4.7075,4298.9,4298.8,2.35523057]
[1757092661425,4.2108,4298.9,4298.8,2.35523057]
[1757092663124,0.116,4299.6,4298.8,0.4497]
[1757092663326,3.91,4299.5,4299.3,2.32592561]
[1757092663528,0.2999,4299.4,4299.3,2.32592561]
[1757092664512,1.713,4300.1,4299.3,0.3047]
[1757092664737,4.026,4299.9,4299.6,2.32578404]
[1757092664943,0.2979,4299.7,4299.6,2.32578404]
[1757092665110,4.2079,4299.7,4299.6,2.32578404]
[1757092665751,2.32549325,4300.2,4299.6,2.32578404]
[1757092665752,3.91,4300.2,4299.9,2.32563547]
[1757092665923,3.91,4300.2,4299.9,2.63033547]
[1757092666243,3.91,4300.2,4299.9,2.74633547]
[1757092667035,3.91,4300.2,4299.9,2.44163547]
[1757092667611,8.8058,4300.0,4299.4,3.91]
[1757092667912,3.91,4299.9,4299.4,0.116]
[1757092668341,0.3064,4299.5,4299.4,2.44190594]
[1757092668543,4.4063,4299.9,4299.5,2.32585184]
[1757092668850,0.3043,4299.6,4299.5,2.32585184]
[1757092669371,3.909,4299.7,4299.6,2.32579774]
[1757092669725,4.2133,4299.7,4299.6,2.32579774]
[1757092670652,3.909,4299.7,4299.6,2.32579774]
[1757092671144,3.909,4299.7,4299.6,2.32979774]
[1757092671447,8.001,4300.0,4299.9,2.32563547]
[1757092671755,8.001,4300.0,4299.9,2.63033547]
[1757092672113,8.001,4300.0,4299.9,2.74633547]
[1757092673444,8.001,4300.0,4299.9,2.44163547]
[1757092675767,8.0051,4300.0,4299.9,2.44163547]
[1757092676069,8.001,4300.0,4299.9,2.44163547]
[1757092676567,8.001,4300.0,4299.9,8.73676965]
[1757092676933,8.001,4300.0,4299.9,8.62076965]
[1757092677267,8.001,4300.0,4299.9,8.73676965]
[1757092681357,8.001,4300.0,4299.9,7.80366965]
[1757092681580,8.001,4300.0,4299.9,8.73676965]
[1757092685948,1e-08,4300.0,4299.9,8.73676965]
[1757092686279,1e-08,4300.0,4299.9,29.24493677]
[1757092686980,1e-08,4300.0,4299.9,29.74123677]
[1757092687679,1e-08,4300.0,4299.9,12.23306965]
[1757092687868,1e-08,4300.0,4299.9,12.23206965]
[1757092688179,1e-08,4300.0,4299.9,11.77026965]
[1757092688484,1e-08,4300.0,4299.9,11.27396965]
[1757092688694,1e-08,4300.0,4299.9,6.89466965]
[1757092688897,1e-08,4300.0,4299.9,10.80266965]
[1757092689397,0.00410001,4300.0,4299.9,10.49796965]
[1757092689853,1e-08,4300.0,4299.9,10.49796965]
[1757092690276,0.00800001,4300.0,4299.9,10.49796965]
[1757092690686,1e-08,4300.0,4299.9,10.49796965]
[1757092691587,0.00800001,4300.0,4299.9,10.49796965]
[1757092691772,1e-08,4300.0,4299.9,10.49796965]
[1757092693493,0.00800001,4300.0,4299.9,3.58996965]
[1757092693699,0.00800001,4300.0,4299.9,7.49796965]
[1757092695264,0.88790001,4300.0,4299.9,0.116]
[1757092695469,0.88790001,4300.0,4299.6,2.32979336]
[1757092695676,0.116,4299.8,4299.6,0.004]
[1757092696100,0.888,4299.7,4299.6,0.004]
[1757092696294,0.4939,4299.7,4299.6,2.32979774]
[1757092697165,0.888,4299.7,4299.6,0.004]
[1757092697698,0.888,4299.7,4299.6,2.32979774]
[1757092699304,0.888,4299.7,4299.6,0.004]
[1757092699503,0.888,4299.7,4299.6,2.32979774]
[1757092700409,0.4939,4299.7,4299.6,2.32979774]
[1757092700722,0.0119,4299.7,4299.6,2.32979774]
[1757092701174,0.39410001,4300.0,4299.7,2.32574365]
[1757092701175,1e-08,4300.0,4299.7,2.32574365]
[1757092701499,1e-08,4300.0,4299.9,2.61203547]
[1757092702007,1e-08,4300.0,4299.9,7.56653547]
[1757092703125,1e-08,4300.0,4299.9,7.08473547]
[1757092705306,1e-08,4300.0,4299.9,7.56653547]
[1757092707235,1e-08,4300.0,4299.9,10.56653547]
[1757092707395,1e-08,4300.0,4299.9,12.83444344]
[1757092708519,1e-08,4300.0,4299.9,19.40701791]
[1757092708727,1e-08,4300.0,4299.9,18.92521791]
[1757092709126,1e-08,4300.0,4299.9,11.90394344]
[1757092709326,0.00410001,4300.0,4299.9,0.116]
[1757092709526,0.00410001,4300.0,4299.9,2.32563547]
[1757092711509,0.48610001,4300.0,4299.9,2.32563547]
[1757092712935,0.48610001,4300.0,4299.7,6.23374365]
[1757092712936,0.48610001,4300.0,4299.7,3.908]
[1757092713104,0.00410001,4300.0,4299.9,4.2]
[1757092713427,2.79521077,4300.0,4299.8,4.2]
[1757092713629,3.20953547,4299.9,4299.8,4.2]
[1757092713835,3.21753547,4299.9,4299.8,4.2]
[1757092714024,0.8919,4299.9,4299.8,4.2]
[1757092714219,3.21753547,4299.9,4299.8,4.2]
[1757092714419,1.49275609,4299.9,4299.8,4.2]
[1757092714945,3.81839156,4299.9,4299.8,4.2]
[1757092716748,3.81839156,4299.9,4299.6,0.004]
[1757092716749,1.49275609,4299.9,4299.6,0.004]
[1757092716921,2.32571958,4299.8,4299.6,0.004]
[1757092717116,0.51573544,4299.7,4299.6,0.004]
[1757092717316,3.73237909,4299.7,4299.6,0.004]
[1757092717540,1.40663544,4299.7,4299.6,0.004]
[1757092717845,3.73237909,4299.7,4299.6,0.004]
[1757092718206,1.40663544,4299.7,4299.6,0.004]
[1757092718462,3.73237909,4299.7,4299.6,0.004]
[1757092718913,1.40663544,4299.7,4299.6,0.004]
[1757092719917,1.29863544,4299.7,4299.6,0.004]
[1757092720224,4.72463544,4299.7,4299.6,0.004]
[1757092720422,4.2089,4299.7,4299.6,0.004]
[1757092720610,6.53464365,4299.7,4299.6,0.004]
[1757092720830,7.00654365,4299.7,4299.6,0.004]
[1757092721034,7.11454365,4299.7,4299.6,0.004]
[1757092721236,7.11454365,4299.7,4299.1,0.004]
[1757092721237,3.11801414,4299.2,4299.1,0.004]
[1757092721438,6.11817646,4298.9,4298.8,0.029]
[1757092721757,2.32628469,4298.7,4298.2,0.004]
[1757092721910,7.02628469,4298.7,4298.2,0.004]
[1757092722114,7.90588469,4298.7,4298.2,0.004]
[1757092724264,10.90588469,4298.7,4298.2,0.004]
[1757092729727,11.07846923,4298.7,4298.2,0.004]
[1757092731751,3.11844705,4298.4,4298.2,0.004]
[1757092731924,25.03578373,4298.4,4298.2,0.004]
[1757092732129,25.91548373,4298.4,4298.2,0.004]
[1757092732524,3.792,4298.1,4297.7,0.004]
[1757092732731,6.23471769,4297.9,4297.8,1e-08]